Cogmind - Beta 13 @@@ ROGUE MODE // 2024.04.04 @ 03:50:11 Player: A Moose Result: Destroyed by Y-45 Defender with Heavy Assault Rifle Performance ------------- Evolutions (0) 0 Regions Visited (4) 800 Robots Destroyed (19) 95 Value Destroyed (427) 427 Prototype IDs (0) 0 Alien Tech Used (0) 0 Bonus (0) 0 TOTAL SCORE: 1322 Bonus ------- None Cogmind --------- Core Integrity 0/250 Matter 290/300 Energy 73/100 System Corruption 0% Temperature Cool (0) Movement Core (50) Location -9/Recycling Parts ------- > --- POWER (1) -------- (None) > --- PROPULSION (2) --- (None) > --- UTILITY (2) ------ Small Storage Unit Weight Redist. System > --- WEAPON (2) ------- (None) > --- INVENTORY (8) ---- Light Ion Engine Light Nuclear Core Scrap Engine Weight Redist. System Structural Scanner Signal Interpreter Peak State ------------ > --- POWER ------------ Ion Engine > --- PROPULSION ------- Light Treads Flight Unit > --- UTILITY ---------- Small Storage Unit Signal Interpreter > --- WEAPON ----------- Plasma Cutter Plasma Cutter > --- INVENTORY -------- Light Ion Engine Light Nuclear Core Scrap Engine Weight Redist. System Weight Redist. System Structural Scanner Signal Interpreter [Rating: 11] Favorites ----------- Power Ion Engine Engine Ion Engine Propulsion Light Treads Treads Light Treads Flight Unit Flight Unit Utility Small Storage Unit Device Structural Scanner Storage Small Storage Unit Processor Signal Interpreter Weapon Medium Laser Energy Gun Medium Laser Ballistic Gun Assault Rifle Special Weapon Plasma Cutter Build | -11 -10 -10 -10 -9 ------- Run | Yrd Mat Min Sub Rec Slots Evolved . | . . . . . Power . | . . . . . Propulsion . | . . . . . Utility . | . . . . . Weapon . | . . . . . Parts Attached 18 | 6 2 3 2 5 Power 2 | 1 . 1 . . Engine 2 | 1 . 1 . . Core . | . . . . . Reactor . | . . . . . Propulsion 5 | 2 . . 1 2 Treads 4 | 2 . . 1 1 Leg . | . . . . . Wheel . | . . . . . Hover . | . . . . . Flight 1 | . . . . 1 Utility 4 | 1 2 . . 1 Device 2 | . 1 . . 1 Storage 1 | 1 . . . . Processor 1 | . 1 . . . Hackware . | . . . . . Protection . | . . . . . Artifact . | . . . . . Weapon 7 | 2 . 2 1 2 Energy Gun 3 | 1 . 2 . . Energy Cannon . | . . . . . Ballistic Gun 1 | 1 . . . . Ballistic Cannon . | . . . . . Launcher . | . . . . . Special Weapon 3 | . . . 1 2 Impact Weapon . | . . . . . Slashing Weapon . | . . . . . Piercing Weapon . | . . . . . Special Melee Weapon . | . . . . . Unidentified Prototypes . | . . . . . Parts Lost 12 | . . 2 5 5 Power 1 | . . . . 1 Propulsion 4 | . . . 2 2 Utility . | . . . . . Weapon 7 | . . 2 3 2 Highest Loss Streak 5 | . . 2 3 5 To Critical Strikes 1 | . . . 1 . Average Slot Usage (%) 96 | . 93 99 97 93 Engine 13 | . 14 14 14 13 Treads 25 | . 28 28 26 20 Flight 2 | . . . . 7 Storage 14 | . 14 14 14 14 Processor 12 | . 3 14 14 14 Energy Gun 15 | . 14 22 26 . Ballistic Gun 3 | . 14 5 . . Special Weapon 6 | . . . . 22 Naked Turns . | . . . . . Heaviest Build 15 | 14 15 14 14 12 Greatest Support 40 | 40 40 40 40 40 Greatest Overweight (x) 1 | . . . . 1 Average Overweight (x) . | . . . . . Largest Inventory Capacity 8 | 8 8 8 8 8 Average Capacity 7 | 6 8 8 8 8 Most Carried 8 | 5 8 8 8 8 Average Carried 7 | 2 5 7 7 7 Final Capacity 8 | 8 8 8 8 8 Final Carried 8 | 3 8 7 7 7 Class Distribution -------------------- 100% | Mutant Dominant Class ---------------- Mutant | -10/Materials Mutant | -10/Mines Mutant | -10/Subcaves Mutant | -9/Recycling Resources | -11 -10 -10 -10 -9 ----------- Run | Yrd Mat Min Sub Rec Matter Collected 459 | 196 153 80 . 30 Remotely . | . . . . . Salvage Created 559 | . 218 256 85 . Parts 31 | . 12 9 10 . Haulers Intercepted 1 | . 1 . . . Recyclers Shooed . | . . . . . Parts Field Recycled . | . . . . . Retrieved Matter . | . . . . . Parts Self-Destructed 9 | . . . 9 . Prevented . | . . . . . Kills | -11 -10 -10 -10 -9 ------- Run | Yrd Mat Min Sub Rec Combat Hostiles Destroyed 16 | . 4 7 5 . Guns 16 | . 4 7 5 . Classes Destroyed 6 | . 3 2 1 . Worker 1 | . . 1 . . Hauler 1 | . 1 . . . Watcher 1 | . 1 . . . Swarmer 7 | . . 3 4 . Grunt 8 | . 4 4 . . Subdweller 1 | . . . 1 . Best Kill Streak 4 | . 2 2 4 . Combat Bots Only 4 | . 2 2 4 . Max Kills in Single Turn 2 | . 1 1 2 . Gunslinging 1 | . . . 1 . Exploded . | . . . . . Melee . | . . . . . Uniques/NPCs Destroyed . | . . . . . Combat | -11 -10 -10 -10 -9 -------- Run | Yrd Mat Min Sub Rec Hostile Shots Fired 190 | . 19 50 103 18 Missed 68 | . 5 9 51 3 Damage Taken 1269 | . 151 490 408 220 Core 263 | . 44 120 37 62 Absorbed by Shields . | . . . . . Core Remaining (%) 100 | 100 . . . . Volleys Fired 81 | . 23 33 23 2 Largest 2 | . 2 2 2 2 Hottest 150 | . 70 100 150 40 Shots Fired 155 | . 44 65 42 4 Gun 150 | . 44 65 41 . Cannon . | . . . . . Launcher . | . . . . . Special 5 | . . . 1 4 Kinetic 40 | . 23 17 . . Thermal 115 | . 21 48 42 4 Explosive . | . . . . . Electromagnetic . | . . . . . Robot Hit Streak 12 | . 8 7 12 11 Robot Miss Streak 3 | . 2 3 2 . Penetration Max . | . . . . . Secondary Targets 1 | . . . 1 . Max Gunslinging Chain 1 | . . . 1 . Shots Hit Robots 98 | . 27 41 26 4 Core Hits 32 | . 11 14 7 . Critical Kills . | . . . . . Critical Parts Destroyed . | . . . . . Critical Strikes 12 | . 1 7 4 . Burn 12 | . 1 7 4 . Melee Attacks . | . . . . . Impact . | . . . . . Slashing . | . . . . . Piercing . | . . . . . Sneak Attacks . | . . . . . Combat Hostiles . | . . . . . Follow-up Attacks . | . . . . . Damage Inflicted 1235 | . 342 523 326 44 Guns 1181 | . 342 523 316 . Cannons . | . . . . . Explosions . | . . . . . Melee . | . . . . . Ramming . | . . . . . Kinetic 303 | . 157 146 . . Thermal 932 | . 185 377 326 44 Explosive . | . . . . . Electromagnetic . | . . . . . Impact . | . . . . . Slashing . | . . . . . Piercing . | . . . . . Highest Corruption . | . . . . . Average Corruption . | . . . . . Corruption Purged . | . . . . . Corruption Blocked . | . . . . . Overload Shots . | . . . . . Overflow Damage . | . . . . . Projectiles . | . . . . . Explosions . | . . . . . Melee . | . . . . . Knockbacks . | . . . . . Impact . | . . . . . Kinetic . | . . . . . Secondary . | . . . . . Self-Inflicted Damage . | . . . . . Shots . | . . . . . Rammed . | . . . . . Targets Rammed . | . . . . . Kicked . | . . . . . Crushed . | . . . . . Highest Temperature 236 | . 108 236 10 . Average Temperature 66 | . 46 82 4 . Received Heat Transfer 618 | . 84 234 237 63 Siege Activations . | . . . . . Robots Corrupted . | . . . . . Combat Hostiles . | . . . . . Parts Fried . | . . . . . Impact Corruptions . | . . . . . Robots Melted . | . . . . . Combat Hostiles . | . . . . . Parts Melted 10 | . 1 7 2 . Heat Transferred 3706 | . 629 1628 1301 148 Parts Sabotaged . | . . . . . Parts Stolen . | . . . . . Parts Stripped . | . . . . . Power Chain Reactions . | . . . . . Alert | -11 -10 -10 -10 -9 ------- Run | Yrd Mat Min Sub Rec Peak Influence 820 | . 136 141 . 820 Initial 813 | . . 52 . 813 Average 282 | . 55 56 . 700 Maximum Alert Level 3 | . . . . 3 Low Security (%) 64 | 100 100 100 . . Level 1 . | . . . . . Level 2 18 | . . . . 53 Level 3 16 | . . . . 46 Level 4 . | . . . . . Level 5 . | . . . . . High Security . | . . . . . Max Security . | . . . . . Squads Dispatched 1 | . 1 . . . Investigation . | . . . . . Extermination . | . . . . . Reinforcement 1 | . 1 . . . Assault . | . . . . . Garrison . | . . . . . Intercept . | . . . . . Searches Triggered . | . . . . . Construction Impeded . | . . . . . Haulers Reinforced . | . . . . . Active Scanning Responses . | . . . . . Cargo Convoy Interrupts . | . . . . . Stealth | -11 -10 -10 -10 -9 --------- Run | Yrd Mat Min Sub Rec Distress Signals 1 | . 1 . . . Communications Jammed . | . . . . . Distress Signals . | . . . . . Times Spotted 73 | . 9 8 55 1 Peak Tracking Total 6 | . 3 3 6 2 Tactical Retreats 6 | . . 1 5 . Traps | -11 -10 -10 -10 -9 ------- Run | Yrd Mat Min Sub Rec Traps Triggered . | . . . . . Indirectly . | . . . . . Trap Hack Attempts . | . . . . . Triggered . | . . . . . Disarmed . | . . . . . Reprogrammed . | . . . . . Reused . | . . . . . Traps Extracted . | . . . . . Installed . | . . . . . Triggered . | . . . . . Machines | -11 -10 -10 -10 -9 ---------- Run | Yrd Mat Min Sub Rec Machines Disabled . | . . . . . Max in Single Turn . | . . . . . Machines Repaired . | . . . . . Machines Dismantled 10 | . . . . 10 Machines Sabotaged . | . . . . . Overloaded Fab Kills . | . . . . . Hacking | -11 -10 -10 -10 -9 --------- Run | Yrd Mat Min Sub Rec Machines Accessed 5 | . . 1 . 4 Terminals 2 | . . 1 . 1 Fabricators . | . . . . . Repair Stations . | . . . . . Recycling Units 3 | . . . . 3 Scanalyzers . | . . . . . Garrison Access . | . . . . . Total Hacks 9 | . . 2 . 7 Successful 6 | . . 1 . 5 Failed 3 | . . 1 . 2 Catastrophic . | . . . . . Database Lockouts . | . . . . . Manual . | . . . . . Terminals 5 | . . 2 . 3 Fabricators . | . . . . . Repair Stations . | . . . . . Recycling Units 4 | . . . . 4 Scanalyzers . | . . . . . Garrison Access . | . . . . . Terminal Hacks 2 | . . 1 . 1 Branch Access Points 1 | . . . . 1 Dispatch Records 1 | . . 1 . . Fabricator Hacks . | . . . . . Repair Station Hacks . | . . . . . Recycling Unit Hacks 4 | . . . . 4 Report Inventory 3 | . . . . 3 Retrieve Matter 1 | . . . . 1 Scanalyzer . | . . . . . Garrison Access Hacks . | . . . . . Unauthorized Hacks . | . . . . . Terminals . | . . . . . Fabricators . | . . . . . Repair Stations . | . . . . . Recycling Units . | . . . . . Scanalyzers . | . . . . . Garrison Access . | . . . . . Data Cores Recovered . | . . . . . Used . | . . . . . Hacking Detections 3 | . . 1 . 2 Full Trace Events . | . . . . . Feedback Events . | . . . . . Feedback Blocked . | . . . . . Robot Schematics Acquired . | . . . . . Robots Built . | . . . . . Authchips . | . . . . . Time . | . . . . . Total Robot Build Rating . | . . . . . Part Schematics Acquired . | . . . . . Parts Built . | . . . . . Authchips . | . . . . . Time . | . . . . . Total Part Build Rating . | . . . . . Parts Repaired . | . . . . . Time . | . . . . . Parts Recycled . | . . . . . Recycled Matter . | . . . . . Retrieved Matter . | . . . . . Retrieved Components . | . . . . . Parts Scanalyzed . | . . . . . Part Schematics Acquired . | . . . . . Parts Damaged . | . . . . . Bothacking | -11 -10 -10 -10 -9 ------------ Run | Yrd Mat Min Sub Rec Used RIF Installer . | . . . . . Robots Hacked . | . . . . . Non-combat . | . . . . . Combat . | . . . . . Robot Hacks Applied . | . . . . . Relay Couplers Released . | . . . . . Fabnet Peak Effective % . | . . . . . Robots Rewired . | . . . . . Allies Hacked . | . . . . . Hacks Repelled . | . . . . . Allies | -11 -10 -10 -10 -9 -------- Run | Yrd Mat Min Sub Rec Total Allies . | . . . . . Largest Group . | . . . . . Highest-Rated Group . | . . . . . Highest-Rated Ally . | . . . . . Total Orders . | . . . . . Ally Attacks . | . . . . . Total Damage . | . . . . . Kills . | . . . . . Allies Corrupted . | . . . . . Allies Melted . | . . . . . Intel | -11 -10 -10 -10 -9 ------- Run | Yrd Mat Min Sub Rec Robot Analysis Total . | . . . . . Derelict Logs Recovered 3 | . . 1 2 . Drone Launches . | . . . . . Drone Recoveries . | . . . . . Exploration | -11 -10 -10 -10 -9 ------------- Run | Yrd Mat Min Sub Rec Turns Passed 3053 | 75 323 1173 622 860 Spaces Moved 1532 | 48 152 665 341 326 Core 20 | 14 . . . 6 Treads 1512 | 34 152 665 341 320 Legs . | . . . . . Wheels . | . . . . . Hover . | . . . . . Flight . | . . . . . Fastest Speed 50 | 50 160 160 160 50 Average Speed 158 | 127 160 160 160 158 Slowest Speed 160 | 160 160 160 160 160 Overloaded Moves . | . . . . . Propulsion Burnouts . | . . . . . Robots Hopped . | . . . . . Cave-ins Triggered . | . . . . . Exploration Rate (%) 40 | 4 33 91 28 47 Regions Visited 4 Branch Regions 3 Pre-discovered Areas 1 | . . 1 . . Known Exits Taken 3 | . 1 1 1 . Unknown Exits Taken 1 | 1 . . . . Scrap Searched . | . . . . . Spaces Dug . | . . . . . Terrain Destroyed . | . . . . . Melee . | . . . . . Projectile . | . . . . . AOE . | . . . . . Terrain Rammed . | . . . . . Walls Destroyed . | . . . . . Machines Disabled . | . . . . . Actions | -11 -10 -10 -10 -9 --------- Run | Yrd Mat Min Sub Rec Total 1784 | 62 189 709 375 449 Wait 18 | . 2 6 8 2 Move 1528 | 47 151 664 340 326 Hop . | . . . . . Pick Up 24 | 9 8 2 2 3 Fast Attach 3 | . . . . 3 Attach 14 | 6 2 2 2 2 Detach 1 | . 1 . . . Swap 1 | . . 1 . . Drop 7 | . 2 1 . 4 Fire 81 | . 23 33 23 2 Melee . | . . . . . Ram . | . . . . . Kick . | . . . . . Crush . | . . . . . Escape Stasis . | . . . . . Rewire . | . . . . . Trap . | . . . . . Miscellaneous 107 | . . . . 107 Route ------- -11/Scrapyard -10/Materials (discovered 2 exits: *Mat / *Min) -10/Mines (discovered 2 exits: *Mat / *Sub) -10/Subcaves -9/Recycling History --------- Turn | Location | Event 19 | -11/Scrapyard | Discovered new exit (range 16) 76 | -11/Scrapyard | Entered Materials 306 | -10/Materials | Discovered new exit (range 7) 317 | -10/Materials | Build established: Mutant 318 | -10/Materials | Identified exit to Materials 331 | -10/Materials | Discovered new exit (range 16) 397 | -10/Materials | Identified exit to Mines 399 | -10/Materials | Entered Mines 578 | -10/Mines | Discovered exit to Materials (range 7) 839 | -10/Mines | Core integrity fell below 50% 1532 | -10/Mines | Discovered new exit (range 13) 1562 | -10/Mines | Identified exit to Subcaves 1572 | -10/Mines | Entered Subcaves 1622 | -10/Subcaves | Learned Materials emergency access door positions 1694 | -10/Subcaves | Shifting Twisted Machinery released Sub. Power Source 1778 | -10/Subcaves | Shifting Twisted Machinery released Sub. Monowheel 1781 | -10/Subcaves | Shifting Twisted Machinery released Flamer 1848 | -10/Subcaves | A swath of the cavern ceiling suddenly collapsed 1914 | -10/Subcaves | Learned Materials interactive machine intel 2146 | -10/Subcaves | Core integrity fell below 20% 2172 | -10/Subcaves | Discovered new exit (range 10) 2174 | -10/Subcaves | Lost 3 parts (2n1w) 2193 | -10/Subcaves | Identified exit to Recycling 2194 | -10/Subcaves | Entered Recycling 2196 | -9/Recycling | Found Scrap Engine 3054 | -9/Recycling | Destroyed by Y-45 Defender with Heavy Assault Rifle Last Messages --------------- Dismantling Transfer Shaft with Plasma Cutter. Transfer Shaft dismantled. Dismantling Transfer Shaft with Plasma Cutter. Transfer Shaft dismantled. Dismantling Transfer Shaft with Plasma Cutter. Transfer Shaft dismantled. Dismantling Transfer Shaft with Plasma Cutter. Transfer Shaft dismantled. Dismantling Transfer Shaft with Plasma Cutter. Transfer Shaft dismantled. Y-45 Defender springs to life. Plasma Cutter destroyed. Ion Engine destroyed. Lgt. Treads destroyed. Discarded Signal Interpreter. Map ----- +----------------------------------------------------+ | | | | | | | | | | | | | ????????????????????????????????????????? | | ????????????????????????????????????????? | | ????????###############?????????????????? | | ????????# ######?#####??????? | | ????????# " ##| #?#!!!#??????? | | ????????# ## |###!! ###????? | | ????????# + #????? | | ????????# " # #????? | | #######?# # #????? | | #?# + #????? | | #?# ### ## #????? | | #?# #?# ## #????? | | #?# #?###### #????? | | #?# #??????# #????? | | #?######+###+#### ###### ###??? | | #?????# #??? | | ####### ####################+##?? | | + # #??#= #?? | | ####### #/ #??# #?? | | #?????# Y ! @! #??# #?? | | #?????# # ! ! #??# #?? | | ## ####?????# ###r###########??#% = #?? | | ?###????????# ####????????????#% #?? | | ????????????# ##???????????????#%|! #?? | | ############# ##########???????# ! #?? | | # # # #???????#! #?? | | # # # #???????# = #?? | | # # #???????# ! #?? | | # # # #???????# ! #?? | | # + / #???????#| #?? | | # # # #???????######?? | | # # # #??????????????? | | ####### ##### # #??????????????? | | ??????#?????# # #??????????????? | | ?????######## ##########??????????????? | | ?????# #???????????????????????? | | ?????# #???????????????????????? | | ?????# #???????????????????????? | | ?????######+#####???????????????????????? | | ???????# #???????????????????????? | | ???????# #???????????????????????? | | ???????# #???????????????????????? | | ???????# #???????????????????????? | | ???????# #???????????????????????? | +----------------------------------------------------+ Best States ------------- Heat Dissipation 25 Energy Generation 10 Energy Capacity 250 Matter Stores 300 Matter Capacity 300 Sight Range 16 Terrain Scan Density 10 Evasion (%) 50 Recoil Reduction 2 Item Schematics ----------------- None Robot Schematics ------------------ None Fabricated ------------ Nothing Alien Tech Used ----------------- None Achievements -------------- None Challenges ------------ None Game ------ Seed SuperchargedAutogunOptics Manual? 0 Play Time 00:17:28 Cumulative 14.9 hours Start 2024.04.04 @ 03:32:55 End 2024.04.04 @ 03:50:11 Sessions 1 Manual Loads 0 Difficulty Rogue Special Mode None Game No. 14 Rogue 5 Adventurer 9 Explorer 0 Win Type - Total 0 Types 0/0/0/0/0/0/0/0/0 Lore% 18 Gallery% 26 Achievement% 23 Wizard Run 0 Options --------- Layout 1 ASCII 0 Keyboard 0 Movement Mouse Keybinds 0 Fullscreen 1 Font 24/Smallcaps Map View 50x35 Zoom Use 0% Tactical HUD 0 Map Filters NONE Filters NONE Steam 1 RUN: 495a86f6-9d8d-4bc7-a6f9-be95927afd71